fUST/lending_fUST_20250516
["ID","MTS","AMOUNT","RATE_DAILY","PERIOD"]
[361232481,1747373452835,-450.0,0.00013835,2]
[361232482,1747373452844,-450.0,0.00013835,2]
[361232483,1747373452854,-450.0,0.00013835,2]
[361232484,1747373452866,-450.0,0.00013835,2]
[361232485,1747373452876,-450.0,0.00013835,2]
[361232486,1747373452885,-338.49996107,0.00013835,2]
[361232487,1747373452895,-350.52284534,0.00013835,2]
[361232488,1747373452905,-350.0,0.00013835,2]
[361232489,1747373452914,-170.92,0.00013835,2]
[361232490,1747373452924,-232.9,0.00013835,2]
[361232491,1747373452934,-450.0,0.00013835,2]
[361232492,1747373452943,-197.535274,0.00013835,2]
[361232493,1747373452952,-197.535274,0.00013835,2]
[361232494,1747373452962,-450.0,0.00013835,2]
[361232495,1747373452972,-197.535274,0.00013835,2]
[361232496,1747373452981,-197.535266,0.00013835,2]
[361232497,1747373452991,-450.0,0.00013835,2]
[361232498,1747373453001,-350.0,0.00013835,2]
[361232499,1747373453010,-350.0,0.00013835,2]
[361232500,1747373453020,-350.0,0.00013835,2]
[361232501,1747373453030,-668.32,0.00013835,2]
[361232502,1747373453040,-450.0,0.00013835,2]
[361232503,1747373453049,-450.0,0.00013835,2]
[361232504,1747373453058,-450.0,0.00013835,2]
[361232505,1747373453067,-317.32,0.00013835,2]
[361232506,1747373453077,-450.0,0.00013835,2]
[361232507,1747373453086,-450.0,0.00013835,2]
[361232508,1747373453095,-450.0,0.00013835,2]
[361232509,1747373453106,-253.69505738,0.00013835,2]
[361232510,1747373453116,-450.0,0.00013835,2]
[361232511,1747373453125,-450.0,0.00013835,2]
[361232512,1747373453135,-450.0,0.00013835,2]
[361232513,1747373453145,-546.49,0.00013835,2]
[361232514,1747373453155,-450.0,0.00013835,2]
[361232515,1747373453164,-450.0,0.00013835,2]
[361232516,1747373453173,-400.0,0.00013835,2]
[361232517,1747373453183,-450.0,0.00013835,2]
[361232518,1747373453192,-450.0,0.00013835,2]
[361232519,1747373453201,-400.0,0.00013835,2]
[361232520,1747373453210,-450.0,0.00013835,2]
[361232521,1747373453220,-450.0,0.00013835,2]
[361232522,1747373453229,-350.0,0.00013835,2]
[361232523,1747373453238,-481.16,0.00013835,2]
[361232524,1747373453248,-473.13,0.00013835,2]
[361232525,1747373453257,-450.0,0.00013835,2]
[361232526,1747373453266,-450.0,0.00013835,2]
[361232527,1747373453276,-400.0,0.00013835,2]
[361232528,1747373453285,-450.0,0.00013835,2]
[361232529,1747373453295,-450.0,0.00013835,2]
[361232530,1747373453304,-450.0,0.00013835,2]
[361232531,1747373453314,-244.63030653,0.00013835,2]
[361232532,1747373453324,-450.0,0.00013835,2]
[361232533,1747373453335,-450.0,0.00013835,2]
[361232534,1747373453344,-1130.33,0.00013835,2]
[361232535,1747373453356,-662.84,0.00013835,2]
[361232536,1747373453366,-450.0,0.00013835,2]
[361232537,1747373453376,-450.0,0.00013835,2]
[361232538,1747373453385,-450.0,0.00013835,2]
[361232539,1747373453393,-571.86,0.00013835,2]
[361232540,1747373453402,-450.0,0.00013835,2]
[361232541,1747373453412,-450.0,0.00013835,2]
[361232542,1747373453421,-1333.84,0.00013835,2]
[361232543,1747373453430,-404.56116628,0.00013835,2]
[361232544,1747373453439,-450.0,0.00013835,2]
[361232545,1747373453448,-471.81,0.00013835,2]
[361232546,1747373453457,-992.14,0.00013835,2]
[361232547,1747373453467,-450.0,0.00013835,2]
[361232548,1747373453476,-510.1,0.00013835,2]
[361232549,1747373453485,-450.0,0.00013835,2]
[361232550,1747373453494,-162.03,0.00013835,2]
[361232551,1747373453503,-451.82,0.00013835,2]
[361232552,1747373453513,-1230.47,0.00013835,2]
[361232553,1747373453522,-450.0,0.00013835,2]
[361232554,1747373453535,-450.0,0.00013835,2]
[361232555,1747373453544,-450.0,0.00013835,2]
[361232556,1747373453554,-1426.6,0.00013835,2]
[361232557,1747373453563,-1193.75,0.00013835,2]
[361232558,1747373453573,-799.11,0.00013835,2]
[361232559,1747373453582,-174.38,0.00013835,2]
[361232560,1747373453591,-450.0,0.00013835,2]
[361232561,1747373453600,-450.0,0.00013835,2]
[361232562,1747373453611,-1403.32,0.00013835,2]
[361232563,1747373453621,-450.0,0.00013835,2]
[361232564,1747373453630,-450.0,0.00013835,2]
[361232565,1747373453639,-661.12,0.00013835,2]
[361232566,1747373453648,-1821.43,0.00013835,2]
[361232567,1747373453659,-3727.07,0.00013835,2]
[361232568,1747373453668,-450.0,0.00013835,2]
[361232569,1747373453677,-571.72,0.00013835,2]
[361232570,1747373453686,-450.0,0.00013835,2]
[361232571,1747373453696,-196.11,0.00013835,2]
[361232572,1747373453705,-450.0,0.00013835,2]
[361232573,1747373453715,-5275.41995309,0.00013835,2]
[361232578,1747373534789,1000.0,0.00027469,30]
[361232579,1747373607120,159.26967,0.00027397,120]
[361232709,1747374638332,-388.13637237,0.00012208,14]
[361232737,1747374640656,-306.95607991,0.00012208,14]
[361232740,1747374643500,-4304.90754772,0.00012208,14]
[361232741,1747374643510,-300.0,0.00012454,2]
[361232742,1747374643519,-9536.9775625,0.00012455,2]
[361232743,1747374643528,-151.0,0.00012861,2]
[361232744,1747374643538,-151.0,0.00012861,2]
[361232745,1747374643548,-151.0,0.00012861,2]
[361232746,1747374643557,-151.0,0.000129,2]
[361232747,1747374643566,-176.627213,0.00013005,2]
[361232748,1747374643575,-207.4,0.00013108,2]
[361232749,1747374643584,-157.828058,0.00013282,2]
[361232750,1747374643593,-155.674133,0.00013515,2]
[361232752,1747374643603,-155.674133,0.00013529,2]
[361232755,1747374643620,-155.674133,0.00013544,2]
[361232758,1747374643633,-155.674133,0.00013558,2]
[361232759,1747374643643,-174.77058364,0.00013597,2]
[361232760,1747374643653,-151.0,0.00013641,2]
[361232761,1747374643662,-7582.02730283,0.00013649,2]
[361232762,1747374643672,-160.0,0.00013649,2]
[361232764,1747374643681,-160.0,0.00013649,2]
[361232765,1747374643691,-160.0,0.00013649,2]
[361232766,1747374643701,-160.0,0.00013649,2]
[361232767,1747374643711,-160.0,0.00013649,2]
[361232768,1747374643721,-212.26722696,0.00013649,2]
[361232769,1747374643731,-422.39640784,0.00013649,2]
[361232770,1747374643740,-283.991943,0.00013657,2]
[361232771,1747374643750,-420.0,0.00013666,2]
[361232772,1747374643760,-652.84442803,0.00013676,2]
[361232773,1747374643770,-274.89659821,0.00013697,2]
[361232774,1747374643779,-244.61255738,0.00013697,2]
[361232775,1747374643789,-500.0,0.00013697,2]
[361232776,1747374643800,-500.0,0.00013697,2]
[361232777,1747374643810,-637.72364827,0.00013697,2]
[361232778,1747374643820,-500.0,0.00013697,2]
[361232779,1747374643830,-500.0,0.00013697,2]
[361232780,1747374643840,-500.0,0.00013697,2]
[361232781,1747374643849,-500.0,0.00013697,2]
[361232782,1747374643859,-500.0,0.00013697,2]
[361232783,1747374643868,-500.0,0.00013697,2]
[361232784,1747374643877,-500.0,0.00013697,2]
[361232785,1747374643887,-500.0,0.00013697,2]
[361232786,1747374643897,-500.0,0.00013697,2]
[361232787,1747374643906,-500.0,0.00013697,2]
[361232788,1747374643922,-500.0,0.00013697,2]
[361232789,1747374643931,-500.0,0.00013697,2]
[361232790,1747374643941,-500.0,0.00013697,2]
[361232791,1747374643951,-230.38739287,0.00013697,2]
[361232792,1747374643962,-500.0,0.00013697,2]
[361232793,1747374643972,-500.0,0.00013697,2]
[361232794,1747374643982,-500.0,0.00013697,2]
[361232795,1747374643993,-500.0,0.00013697,2]
[361232796,1747374644004,-500.0,0.00013697,2]
[361232797,1747374644014,-500.0,0.00013697,2]
[361232798,1747374644024,-500.0,0.00013697,2]
[361232799,1747374644033,-500.0,0.00013697,2]
[361232800,1747374644043,-500.0,0.00013697,2]
[361232801,1747374644053,-500.0,0.00013697,2]
[361232802,1747374644062,-500.0,0.00013697,2]
[361232803,1747374644072,-500.0,0.00013697,2]
[361232804,1747374644082,-500.0,0.00013697,2]
[361232805,1747374644092,-500.0,0.00013697,2]
[361232806,1747374644102,-500.0,0.00013697,2]
[361232807,1747374644111,-500.0,0.00013697,2]
[361232808,1747374644121,-500.0,0.00013697,2]
[361232809,1747374644131,-500.0,0.00013697,2]
[361232810,1747374644142,-556.30507106,0.00013697,2]
[361232811,1747374644152,-500.0,0.00013697,2]
[361232812,1747374644161,-500.0,0.00013697,2]
[361232813,1747374644170,-500.0,0.00013697,2]
[361232814,1747374644180,-500.0,0.00013697,2]
[361232815,1747374644189,-500.0,0.00013697,2]
[361232816,1747374644199,-608.62191032,0.00013697,2]
[361232817,1747374644210,-500.0,0.00013697,2]
[361232818,1747374644219,-500.0,0.00013697,2]
[361232819,1747374644230,-500.0,0.00013697,2]
[361232820,1747374644239,-500.0,0.00013697,2]
[361232821,1747374644248,-500.0,0.00013697,2]
[361232822,1747374644258,-500.0,0.00013697,2]
[361232823,1747374644267,-500.0,0.00013697,2]
[361232824,1747374644277,-240.76881,0.00013698,2]
[361232825,1747374644286,-407.79840998,0.00013698,2]
[361232826,1747374644296,-201.44,0.00013698,2]
[361232827,1747374644305,-450.0,0.00013698,2]
[361232828,1747374644315,-450.0,0.00013698,2]
[361232829,1747374644324,-450.0,0.00013698,2]
[361232830,1747374644334,-47.7252482,0.00013698,2]
[361232841,1747374843967,500.0,0.00027436,30]
[361232842,1747374878632,500.0,0.00027436,30]
[361232843,1747374897719,500.0,0.00027436,30]
[361232844,1747374923925,500.0,0.00027433,30]
[361232874,1747375673129,555.0,0.00027397,120]
[361232875,1747375684343,555.0,0.00027397,120]
[361233039,1747375838481,-576.971694,0.0001263,2]
[361233041,1747375838490,-4377.5873635,0.00012931,14]
[361233165,1747375843620,-622.4126365,0.00012931,14]
[361233166,1747375843635,-1093.0,0.00013462,2]
[361233167,1747375843646,-623.38243501,0.00013468,2]
[361233168,1747375843658,-155.674134,0.00013529,2]
[361233169,1747375843668,-155.674134,0.00013544,2]
[361233170,1747375843677,-155.674134,0.00013558,2]
[361233171,1747375843687,-174.77058362,0.00013598,2]
[361233172,1747375843698,-198.51,0.000136,3]
[361233173,1747375843707,-198.51,0.000136,2]
[361233174,1747375843716,-998.24360331,0.00013647,2]
[361233175,1747375843725,-358.93193254,0.00013695,2]
[361233176,1747375843734,-500.0,0.00013695,2]
[361233177,1747375843744,-266.49269814,0.00013695,2]
[361233178,1747375843753,-500.0,0.00013695,2]
[361233179,1747375843762,-500.0,0.00013695,2]
[361233180,1747375843771,-500.0,0.00013695,2]
[361233181,1747375843781,-1109.41541525,0.00013696,2]
[361233191,1747376071233,1901.73,0.00027436,30]
[361233200,1747376782195,194.50989036,0.000273,120]
[361233201,1747376849307,149684.88679,0.00027438,120]
[361233230,1747377031890,-5000.0,0.00012742,14]
[361233231,1747377031900,-596.77732548,0.00013314,2]
[361233232,1747377031910,-300.0,0.00013398,2]
[361233234,1747377031919,-1200.0,0.00013398,2]
[361233235,1747377031928,-300.0,0.00013399,2]
[361233237,1747377031939,-12403.1558508,0.000134,2]
[361233239,1747377031949,-157.54209284,0.00013596,2]
[361233242,1747377031959,-2202.91107045,0.000136,2]
[361233245,1747377031969,-160.0,0.00013694,2]
[361233248,1747377031979,-212.26722696,0.00013694,2]
[361233250,1747377031989,-478.31441476,0.00013695,2]
[361233252,1747377031998,-311.88451818,0.00013695,2]
[361233254,1747377032009,-500.0,0.00013695,2]
[361233255,1747377032019,-227.81548182,0.00013695,2]
[361233257,1747377032029,-283.44163695,0.00013695,2]
[361233258,1747377032039,-8799.53432999,0.00013695,2]
[361233260,1747377032049,-5561.11863467,0.00013696,2]
[361233277,1747377037652,-478.31441476,0.00013696,2]
[361233332,1747377039936,-1039.7,0.00013696,2]
[361233389,1747377798564,-151.70063652,0.00011842,2]
[361233390,1747377801336,-305.42821687,0.00011842,2]
[361233391,1747377803276,-238.10347877,0.00011842,2]
[361233392,1747377805374,-160.25887754,0.00011842,2]
[361233393,1747377807597,-175.77105193,0.00011842,2]
[361233394,1747377809637,-169.91242968,0.00011842,2]
[361233395,1747377812518,-236.4578936,0.00011842,2]
[361233396,1747377817541,-273.32914496,0.00011842,2]
[361233397,1747377820997,-265.72981301,0.00011842,2]
[361233398,1747377824886,-389.10798108,0.00011842,2]
[361233399,1747377827545,-248.55865123,0.00011842,2]
[361233400,1747377829103,-271.01813992,0.00011842,2]
[361233401,1747377832996,-228.98186008,0.00011842,2]
[361233402,1747377836558,-279.79451778,0.00011842,2]
[361233403,1747377838095,-220.20548222,0.00011842,2]
[361233404,1747377839652,-224.59105882,0.00011842,2]
[361233405,1747377842297,-422.33179478,0.00011842,2]
[361233406,1747377844854,-230.9036542,0.00011842,2]
[361233407,1747377846958,-224.13271885,0.00011842,2]
[361233408,1747377849160,-167.620862,0.00011842,2]
[361233410,1747377985776,-423.1303243,0.00011724,2]
[361233411,1747377991618,-235.78575013,0.00011724,2]
[361233412,1747377993028,-162.30645893,0.00011724,2]
[361233413,1747377995680,-229.90412252,0.00011724,2]
[361233414,1747377998872,-210.27881232,0.00011724,2]
[361233415,1747378001019,-292.48014679,0.00011724,2]
[361233416,1747378002649,-394.64866672,0.00011724,2]
[361233417,1747378005757,-327.5457519,0.00011724,2]
[361233418,1747378007694,-170.5166775,0.00011724,2]
[361233419,1747378009246,-455.46555164,0.00011724,2]
[361233420,1747378015238,-170.07335641,0.00011724,2]
[361233421,1747378018021,-290.70444987,0.00011724,2]
[361233422,1747378019556,-203.55172513,0.00011724,2]
[361233423,1747378021705,-196.47763723,0.00011724,2]
[361233424,1747378024791,-155.26618777,0.00011724,2]
[361233425,1747378026921,-189.0,0.00011724,2]
[361233426,1747378030174,-333.1051772,0.00011724,2]
[361233427,1747378033495,-165.8948228,0.00011724,2]
[361233428,1747378036130,-166.94641052,0.00011724,2]
[361233429,1747378043693,-226.91797032,0.00011724,2]
[361233494,1747378240629,-90.03691592,0.00012205,2]
[361233527,1747378243084,-4596.51402583,0.00012205,2]
[361233540,1747378246129,-609.0,0.00012328,2]
[361233541,1747378246139,-182.76,0.00012329,2]
[361233542,1747378246148,-152.3,0.00012329,2]
[361233543,1747378246158,-761.5,0.00012329,2]
[361233544,1747378246168,-165.52734981,0.00012426,2]
[361233545,1747378246178,-500.0,0.000125,2]
[361233546,1747378246187,-300.0,0.00012773,2]
[361233547,1747378246197,-300.0,0.00012773,2]
[361233548,1747378246206,-279.10264949,0.00012775,2]
[361233549,1747378246218,-9124.999999,0.00012775,2]
[361233550,1747378246230,-595.89735151,0.00012775,2]
[361233551,1747378246240,-624.72885476,0.00013151,2]
[361233552,1747378246250,-1142.06914611,0.00013598,2]
[361233553,1747378246259,-152.0,0.00013632,2]
[361233554,1747378246269,-160.0,0.00013642,2]
[361233555,1747378246279,-1142.06914609,0.00013667,2]
[361233556,1747378246289,-61786.30794485,0.00013696,2]
[361233557,1747378246300,-166.0,0.00013696,2]
[361233558,1747378246310,-166.0,0.00013696,2]
[361233559,1747378246319,-166.0,0.00013696,2]
[361233560,1747378246329,-166.0,0.00013696,2]
[361233561,1747378246339,-166.0,0.00013696,2]
[361233562,1747378246349,-166.0,0.00013696,2]
[361233563,1747378246581,-166.0,0.00013696,2]
[361233564,1747378246591,-172.0,0.00013696,2]
[361233565,1747378246600,-321.0,0.00013696,2]
[361233566,1747378246611,-321.0,0.00013696,2]
[361233567,1747378246622,-321.0,0.00013696,2]
[361233568,1747378246631,-321.0,0.00013696,2]
[361233569,1747378246641,-321.0,0.00013696,2]
[361233570,1747378246650,-321.0,0.00013696,2]
[361233571,1747378246660,-321.0,0.00013696,2]
[361233572,1747378246670,-321.0,0.00013696,2]
[361233573,1747378246679,-321.0,0.00013696,2]
[361233574,1747378246691,-321.0,0.00013696,2]
[361233575,1747378246700,-321.0,0.00013696,2]
[361233576,1747378246709,-321.0,0.00013696,2]
[361233577,1747378246719,-321.0,0.00013696,2]
[361233578,1747378246729,-763.93222942,0.00013696,2]
[361233579,1747378246739,-166.0,0.00013696,2]
[361233580,1747378246749,-172.0,0.00013696,2]
[361233581,1747378246759,-166.0,0.00013696,2]
[361233582,1747378246768,-166.0,0.00013696,2]
[361233583,1747378246778,-500.0,0.00013697,2]
[361233584,1747378246788,-500.0,0.00013697,2]
[361233585,1747378246797,-500.0,0.00013697,2]
[361233586,1747378246807,-419.16727052,0.00013697,2]
[361233587,1747378246817,-159.39607686,0.00013697,2]
[361233588,1747378246826,-500.0,0.00013697,2]
[361233589,1747378246835,-500.0,0.00013697,2]
[361233590,1747378246845,-500.0,0.00013697,2]
[361233591,1747378246854,-500.0,0.00013697,2]
[361233592,1747378246864,-500.0,0.00013697,2]
[361233593,1747378246873,-157.29500363,0.00013697,2]
[361233594,1747378246882,-213.87770618,0.00013697,2]
[361233595,1747378246892,-600.0,0.00013697,2]
[361233596,1747378246902,-500.0,0.00013697,2]
[361233597,1747378246911,-264.71439432,0.00013697,2]
[361233598,1747378246920,-151.0,0.00013697,2]
[361233599,1747378246930,-298.899104,0.00013697,2]
[361233600,1747378246941,-152.171628,0.00013697,2]
[361233601,1747378246950,-151.0,0.00013697,2]
[361233602,1747378246971,-151.0,0.00013697,2]
[361233603,1747378246981,-165.056846,0.00013697,2]
[361233604,1747378246991,-151.0,0.00013697,2]
[361233605,1747378247002,-151.0,0.00013697,2]
[361233606,1747378247012,-151.0,0.00013697,2]
[361233607,1747378247021,-151.0,0.00013697,2]
[361233608,1747378247031,-151.0,0.00013697,2]
[361233609,1747378247041,-151.0,0.00013697,2]
[361233610,1747378247052,-151.0,0.00013697,2]
[361233611,1747378247063,-151.0,0.00013697,2]
[361233612,1747378247073,-158.594323,0.00013697,2]
[361233613,1747378247083,-151.0,0.00013697,2]
[361233614,1747378247093,-151.0,0.00013697,2]
[361233615,1747378247103,-151.0,0.00013697,2]
[361233616,1747378247113,-151.0,0.00013697,2]
[361233617,1747378247123,-151.0,0.00013697,2]
[361233618,1747378247132,-151.0,0.00013697,2]
[361233619,1747378247142,-151.0,0.00013697,2]
[361233620,1747378247152,-187.150425,0.00013697,2]
[361233621,1747378247161,-153.097539,0.00013697,2]
[361233622,1747378247172,-153.097539,0.00013697,2]
[361233623,1747378247181,-265.764201,0.00013697,2]
[361233624,1747378247191,-151.0,0.00013697,2]
[361233625,1747378247202,-151.0,0.00013697,2]
[361233626,1747378247212,-151.0,0.00013697,2]
[361233627,1747378247224,-151.0,0.00013697,2]
[361233628,1747378247233,-151.0,0.00013697,2]
[361233629,1747378247244,-154.640279,0.00013697,2]
[361233630,1747378247254,-270.979252,0.00013697,2]
[361233631,1747378247264,-530.740653,0.00013697,2]
[361233632,1747378247274,-530.740653,0.00013697,2]
[361233633,1747378247284,-530.740653,0.00013697,2]
[361233634,1747378247294,-530.740653,0.00013697,2]
[361233635,1747378247305,-267.967079,0.00013697,2]
[361233636,1747378247315,-267.967079,0.00013697,2]
[361233637,1747378247325,-267.967079,0.00013697,2]
[361233638,1747378247335,-267.967079,0.00013697,2]
[361233639,1747378247345,-151.0,0.00013698,2]
[361233640,1747378247355,-151.0,0.00013698,2]
[361233641,1747378247365,-151.0,0.00013698,2]
[361233642,1747378247375,-151.0,0.00013698,2]
[361233643,1747378247384,-151.0,0.00013698,2]
[361233644,1747378247394,-151.0,0.00013698,2]
[361233645,1747378247404,-151.0,0.00013698,2]
[361233646,1747378247414,-151.0,0.00013698,2]
[361233647,1747378247424,-151.0,0.00013698,2]
[361233648,1747378247434,-151.0,0.00013698,2]
[361233649,1747378247444,-151.0,0.00013698,2]
[361233650,1747378247454,-151.0,0.00013698,2]
[361233651,1747378247463,-450.0,0.00013698,2]
[361233652,1747378247473,-450.0,0.00013698,2]
[361233653,1747378247483,-151.0,0.00013698,2]
[361233654,1747378247493,-151.0,0.00013698,2]
[361233655,1747378247503,-151.0,0.00013698,2]
[361233656,1747378247512,-450.0,0.00013698,2]
[361233657,1747378247522,-571.83868752,0.00013698,2]
[361233658,1747378247531,-151.390649,0.00013698,2]
[361233659,1747378247541,-151.0,0.00013698,2]
[361233660,1747378247551,-151.0,0.00013698,2]
[361233661,1747378247560,-402.2747518,0.00013698,2]
[361233662,1747378247570,-151.0,0.00013698,2]
[361233663,1747378247580,-151.0,0.00013698,2]
[361233664,1747378247591,-151.0,0.00013698,2]
[361233665,1747378247601,-151.0,0.00013698,2]
[361233666,1747378247613,-151.0,0.00013698,2]
[361233667,1747378247623,-151.0,0.00013698,2]
[361233668,1747378247632,-151.0,0.00013698,2]
[361233669,1747378247642,-151.0,0.00013698,2]
[361233670,1747378247651,-151.0,0.00013698,2]
[361233671,1747378247661,-151.0,0.00013698,2]
[361233672,1747378247670,-151.0,0.00013698,2]
[361233673,1747378247680,-450.0,0.00013698,2]
[361233674,1747378247690,-151.0,0.00013698,2]
[361233675,1747378247701,-151.0,0.00013698,2]
[361233676,1747378247710,-450.0,0.00013698,2]
[361233677,1747378247720,-450.0,0.00013698,2]
[361233678,1747378247730,-450.0,0.00013698,2]
[361233679,1747378247739,-400.0,0.00013698,2]
[361233680,1747378247749,-400.0,0.00013698,2]
[361233681,1747378247759,-450.0,0.00013698,2]
[361233682,1747378247769,-450.0,0.00013698,2]
[361233683,1747378247779,-197.43992307,0.00013698,2]
[361233684,1747378247788,-450.0,0.00013698,2]
[361233685,1747378247798,-151.0,0.00013698,2]
[361233686,1747378247810,-450.0,0.00013698,2]
[361233687,1747378247819,-450.0,0.00013698,2]
[361233688,1747378247829,-151.0,0.00013698,2]
[361233689,1747378247839,-151.0,0.00013698,2]
[361233690,1747378247848,-151.0,0.00013698,2]
[361233691,1747378247858,-151.0,0.00013698,2]
[361233692,1747378247868,-151.0,0.00013698,2]
[361233693,1747378247877,-151.0,0.00013698,2]
[361233694,1747378247887,-151.0,0.00013698,2]
[361233695,1747378247897,-294.128002,0.00013698,2]
[361233696,1747378247906,-450.0,0.00013698,2]
[361233697,1747378247916,-151.0,0.00013698,2]
[361233698,1747378247925,-156.675536,0.00013698,2]
[361233699,1747378247935,-450.0,0.00013698,2]
[361233700,1747378247945,-450.0,0.00013698,2]
[361233701,1747378247955,-151.0,0.00013698,2]
[361233702,1747378247965,-450.0,0.00013698,2]
[361233703,1747378247975,-450.0,0.00013698,2]
[361233704,1747378247985,-450.0,0.00013698,2]
[361233705,1747378247995,-450.0,0.00013698,2]
[361233706,1747378248005,-678.35,0.00013698,2]
[361233707,1747378248015,-500.33,0.00013698,2]
[361233708,1747378248024,-517.97,0.00013698,2]
[361233709,1747378248034,-450.0,0.00013698,2]
[361233710,1747378248043,-572.16195882,0.00013698,2]
[361233711,1747378248055,-450.0,0.00013698,2]
[361233712,1747378248065,-450.0,0.00013698,2]
[361233713,1747378248075,-450.0,0.00013698,2]
[361233714,1747378248085,-151.0,0.00013698,2]
[361233715,1747378248095,-151.0,0.00013698,2]
[361233716,1747378248104,-180.343299,0.00013698,2]
[361233717,1747378248114,-450.0,0.00013698,2]
[361233718,1747378248124,-450.0,0.00013698,2]
[361233719,1747378248133,-450.0,0.00013698,2]
[361233720,1747378248143,-151.0,0.00013698,2]
[361233721,1747378248152,-450.0,0.00013698,2]
[361233722,1747378248162,-450.0,0.00013698,2]
[361233723,1747378248171,-151.0,0.00013698,2]
[361233724,1747378248181,-151.0,0.00013698,2]
[361233725,1747378248190,-151.0,0.00013698,2]
[361233726,1747378248199,-151.0,0.00013698,2]
[361233727,1747378248209,-151.0,0.00013698,2]
[361233728,1747378248219,-151.0,0.00013698,2]
[361233729,1747378248231,-151.0,0.00013698,2]
[361233730,1747378248240,-151.0,0.00013698,2]
[361233731,1747378248250,-151.0,0.00013698,2]
[361233732,1747378248260,-151.0,0.00013698,2]
[361233733,1747378248269,-151.0,0.00013698,2]
[361233734,1747378248279,-235.0,0.00013698,2]
[361233735,1747378248289,-662.63,0.00013698,2]
[361233736,1747378248299,-151.0,0.00013698,2]
[361233737,1747378248308,-450.0,0.00013698,2]
[361233738,1747378248318,-400.0,0.00013698,2]
[361233739,1747378248328,-450.0,0.00013698,2]
[361233740,1747378248337,-450.0,0.00013698,2]
[361233741,1747378248346,-450.0,0.00013698,2]
[361233742,1747378248356,-400.0,0.00013698,2]
[361233743,1747378248365,-400.0,0.00013698,2]
[361233744,1747378248374,-450.0,0.00013698,2]
[361233745,1747378248384,-450.0,0.00013698,2]
[361233746,1747378248393,-450.0,0.00013698,2]
[361233747,1747378248402,-450.0,0.00013698,2]
[361233748,1747378248412,-450.0,0.00013698,2]
[361233749,1747378248421,-450.0,0.00013698,2]
[361233750,1747378248431,-450.0,0.00013698,2]
[361233751,1747378248440,-450.0,0.00013698,2]
[361233752,1747378248449,-450.0,0.00013698,2]
[361233753,1747378248459,-1069.46,0.00013698,2]
[361233754,1747378248468,-450.0,0.00013698,2]
[361233755,1747378248478,-587.52,0.00013698,2]
[361233756,1747378248487,-542.52,0.00013698,2]
[361233757,1747378248497,-450.0,0.00013698,2]
[361233758,1747378248507,-574.2,0.00013698,2]
[361233759,1747378248517,-201.05847454,0.00013698,2]
[361233760,1747378248527,-153.097539,0.00013698,2]
[361233761,1747378248537,-153.097539,0.00013698,2]
[361233762,1747378248547,-450.0,0.00013698,2]
[361233763,1747378248558,-153.097539,0.00013698,2]
[361233764,1747378248567,-153.097539,0.00013698,2]
[361233765,1747378248577,-153.097539,0.00013698,2]
[361233766,1747378248586,-153.097539,0.00013698,2]
[361233767,1747378248595,-153.097539,0.00013698,2]
[361233768,1747378248605,-153.097539,0.00013698,2]